[Event "CZE-ch Open 2019"]
[Site "Ostrava"]
[Date "2019.04.27"]
[Round "1.1"]
[White "Malik, Jan"]
[Black "Navara, David"]
[Result "0-1"]
[ECO "B87"]
[WhiteElo "2286"]
[BlackElo "2733"]
[Annotator "ChessBase"]
[PlyCount "48"]
[EventDate "2019.04.27"]
[EventType "swiss"]
[EventCountry "CZE"]
[SourceTitle "playchess.com"]
[Source "ChessBase"]
[SourceQuality "1"]
[TimeControl "40/5400+30:1800+30"]

1. e4 {[%emt 0:00:00]} c5 {[%emt 0:00:00]} 2. Nf3 {[%emt 0:00:00]} d6 {[%emt 0:00:00]} 3. d4 {[%emt 0:00:00]} cxd4 {[%emt 0:00:00]} 4. Nxd4 {[%emt 0:00:00]} Nf6 {[%emt 0:00:00]} 5. Nc3 {[%emt 0:00:00]} a6 {[%emt 0:00:00]} 6. Bc4 {[%emt 0:00:11]} e6 {[%emt 0:00:00]} 7. Bb3 {[%emt 0:00:20]} b5 {[%emt 0:01:07]} 8. O-O {[%emt 0:00:07]} Be7 {[%emt 0:00:09]} 9. Qf3 {[%emt 0:00:14]} Qb6 {[%emt 0:00:06]} 10. Be3 {[%emt 0:08:52]} Qb7 {[%emt 0:00:12]} 11. a3 {[%emt 0:05:26]} O-O {[%emt 0:05:29]} 12. g4 {[%emt 0:02:50]} Nc6 {[%emt 0:04:07]} 13. Nxc6 {[%emt 0:00:36]} Qxc6 {[%emt 0:00:06]} 14. g5 {[%emt 0:00:42]} Nd7 {[%emt 0:00:05]} 15. Nd5 {[%emt 0:06:21]} Bd8 {[%emt 0:01:09]} 16. Bd4 {[%emt 0:09:53]} Bb7 {[%emt 0:01:37]} 17. Nc3 {[%emt 0:47:02]} Nc5 {[%emt 0:00:43]} 18. Rfe1 {[%emt 0:02:43]} Bxg5 {[%emt 0:00:50]} 19. Qg2 {[%emt 0:03:27]} Bh6 {[%emt 0:06:59]} 20. Re3 {[%emt 0:00:13]} Kh8 {[%emt 0:02:17]} 21. Rh3 {[%emt 0:00:15]} Nxb3 {[%emt 0:00:25]} 22. cxb3 {[%emt 0:00:52]} e5 {[%emt 0:00:41]} 23. Be3 {[%emt 0:00:48]} f5 {[%emt 0:00:21]} 24. Kh1 {[%emt 0:04:24]} f4 {[%emt 0:03:25]} 0-1

[Event "CZE-ch Open 2019"]
[Site "Ostrava"]
[Date "2019.04.27"]
[Round "1.14"]
[White "Biolek, Richard Jr."]
[Black "Belunek, Vladimir"]
[Result "1-0"]
[ECO "D00"]
[WhiteElo "2442"]
[BlackElo "2201"]
[Annotator "RC"]
[PlyCount "49"]
[EventDate "2019.04.27"]
[EventType "swiss"]
[EventCountry "CZE"]
[SourceTitle "playchess.com"]
[Source "ChessBase"]
[SourceQuality "1"]
[TimeControl "40/5400+30:1800+30"]

1. d4 {[%emt 0:00:00]} d5 {[%emt 0:00:17]} 2. Bf4 {[%emt 0:00:00]} Nf6 {[%emt 0:00:21]} 3. e3 {[%emt 0:00:02]} c5 {[%emt 0:01:21]} 4. Nf3 {[%emt 0:09:37]} Nc6 {[%emt 0:00:15]} 5. Be2 {[%emt 0:17:28]} cxd4 {[%emt 0:05:13]} 6. exd4 {[%emt 0:00:03]} Bf5 {[%emt 0:00:51]} 7. O-O {[%emt 0:00:15]} h6 {[%emt 0:00:36]} 8. c3 {[%emt 0:11:36]} e6 {[%emt 0:01:19]} 9. Qb3 {[%emt 0:00:19]} Qc8 {[%emt 0:04:16]} 10. Ne5 {[%emt 0:04:40]} Be7 {[%emt 0:04:09]} 11. Ba6 {[%emt 0:06:41]} bxa6 {[%emt 0:38:47]} 12. Qa4 {[%emt 0:00:14]} O-O {[%emt 0:09:17]} 13. Nxc6 {[%emt 0:00:59]} Re8 {[%emt 0:00:39]} 14. Nxe7+ {[%emt 0:04:11]} Rxe7 {[%emt 0:00:12]} 15. Nd2 {[%emt 0:00:15]} Rb7 {[%emt 0:06:15]} 16. Qa3 {[%emt 0:00:31]} Nd7 {[%emt 0:11:02]} 17. Rac1 {[%emt 0:01:03]} Rb6 {[%emt 0:02:08]} 18. c4 {[%emt 0:06:05]} Rc6 {[%emt 0:00:53]} 19. c5 {[%emt 0:04:28]} e5 {[%emt 0:02:32]} 20. Bxe5 {[%emt 0:00:46]} Nxe5 {[%emt 0:00:06]} 21. dxe5 {[%emt 0:00:01]} Qc7 {[%emt 0:01:46]} 22. Nf3 {[%emt 0:04:00]} Be4 {[%emt 0:00:36]} 23. Nd4 {[%emt 0:00:05]} Rg6 {[%emt 0:00:17]} 24. f3 {[%emt 0:00:06]} Qxe5 {[%emt 0:00:34]} 25. Qe3 {[%emt 0:00:02]} 1-0

[Event "CZE-ch Open 2019"]
[Site "Ostrava"]
[Date "2019.04.27"]
[Round "1.23"]
[White "Otruba, Marek"]
[Black "Jasny, Stanislav"]
[Result "0-1"]
[ECO "B07"]
[WhiteElo "2103"]
[BlackElo "2347"]
[Annotator "ChessBase"]
[PlyCount "76"]
[EventDate "2019.04.27"]
[EventType "swiss"]
[EventCountry "CZE"]
[SourceTitle "playchess.com"]
[Source "ChessBase"]
[SourceQuality "1"]
[TimeControl "40/5400+30:1800+30"]

1. d4 {[%emt 0:00:00]} d6 {[%emt 0:00:00]} 2. e4 {[%emt 0:00:40]} Nf6 {[%emt 0:00:01]} 3. Nc3 {[%emt 0:00:03]} g6 {[%emt 0:00:13]} 4. Bf4 {[%emt 0:01:01]} a6 {[%emt 0:01:17]} 5. Qd2 {[%emt 0:08:06]} b5 {[%emt 0:00:33]} 6. a3 {[%emt 0:05:25]} Bb7 {[%emt 0:01:54]} 7. f3 {[%emt 0:02:09]} Nbd7 {[%emt 0:00:11]} 8. O-O-O {[%emt 0:03:10]} Nb6 {[%emt 0:04:58]} 9. Bd3 {[%emt 0:04:39]} Nfd7 {[%emt 0:01:27]} 10. h4 {[%emt 0:08:21]} h6 {[%emt 0:00:46]} 11. Nh3 {[%emt 0:03:10]} e6 {[%emt 0:07:58]} 12. Be3 {[%emt 0:10:12]} Qe7 {[%emt 0:01:31]} 13. Qe2 {[%emt 0:16:39]} Bg7 14. f4 {[%emt 0:06:47]} O-O-O {[%emt 0:20:28]} 15. Ng1 {[%emt 0:09:51]} c5 {[%emt 0:03:11]} 16. e5 {[%emt 0:06:53]} c4 {[%emt 0:11:17]} 17. exd6 {[%emt 0:04:52]} Qxd6 {[%emt 0:00:12]} 18. Be4 {[%emt 0:00:04]} Nd5 {[%emt 0:03:23]} 19. Bd2 {[%emt 0:03:43]} Nxc3 {[%emt 0:02:51]} 20. Bxb7+ {[%emt 0:00:44]} Kxb7 {[%emt 0:00:06]} 21. Bxc3 {[%emt 0:00:18]} Nb6 {[%emt 0:05:41]} 22. Qe4+ {[%emt 0:02:20]} Qd5 {[%emt 0:03:00]} 23. Qxd5+ {[%emt 0:00:45]} Nxd5 {[%emt 0:00:09]} 24. g3 {[%emt 0:00:34]} Ne3 {[%emt 0:00:36]} 25. Re1 {[%emt 0:01:12]} Nf5 {[%emt 0:00:30]} 26. Ne2 {[%emt 0:00:41]} Nxd4 {[%emt 0:01:54]} 27. Nxd4 {[%emt 0:00:06]} Bxd4 {[%emt 0:00:08]} 28. Bxd4 {[%emt 0:00:13]} Rxd4 {[%emt 0:00:05]} 29. h5 {[%emt 0:00:31]} Rg8 {[%emt 0:02:42]} 30. Re5 {[%emt 0:00:55]} gxh5 {[%emt 0:00:48]} 31. Rh3 {[%emt 0:00:50]} h4 {[%emt 0:01:03]} 32. c3 {[%emt 0:00:30]} Rd3 {[%emt 0:02:53]} 33. Rxh4 {[%emt 0:00:11]} Rgxg3 {[%emt 0:00:06]} 34. Rxh6 {[%emt 0:00:44]} Rg1+ {[%emt 0:00:14]} 35. Kc2 {[%emt 0:00:12]} Rg2+ {[%emt 0:02:04]} 36. Kb1 {[%emt 0:00:44]} Rd1+ {[%emt 0:00:11]} 37. Ka2 {[%emt 0:00:03]} Rgg1 {[%emt 0:00:10]} 38. b4 {[%emt 0:00:29]} Rd2# {[%emt 0:00:07]} 0-1

[Event "CZE-ch Open 2019"]
[Site "Ostrava"]
[Date "2019.04.28"]
[Round "2.10"]
[White "Serrano Salvador, Eduardo"]
[Black "Kociscak, Jiri"]
[Result "1/2-1/2"]
[ECO "D32"]
[WhiteElo "2305"]
[BlackElo "2496"]
[Annotator "RC"]
[PlyCount "61"]
[EventDate "2019.04.27"]
[EventType "swiss"]
[EventCountry "CZE"]
[SourceTitle "playchess.com"]
[Source "ChessBase"]
[SourceQuality "1"]
[TimeControl "40/5400+30:1800+30"]

1. d4 {[%emt 0:00:00]} d5 {[%emt 0:03:32]} 2. c4 {[%emt 0:00:00]} e6 {[%emt 0:00:05]} 3. Nf3 {[%emt 0:00:16]} c5 {[%emt 0:00:05]} 4. cxd5 {[%emt 0:00:31]} exd5 {[%emt 0:00:06]} 5. Nc3 {[%emt 0:00:34]} Nc6 {[%emt 0:00:06]} 6. Bf4 {[%emt 0:00:19]} Nf6 {[%emt 0:04:15]} 7. e3 {[%emt 0:00:26]} c4 {[%emt 0:05:21]} 8. Be2 {[%emt 0:26:55]} Bd6 {[%emt 0:12:22]} 9. Bxd6 {[%emt 0:05:22]} Qxd6 {[%emt 0:00:06]} 10. O-O {[%emt 0:01:11]} Rb8 {[%emt 0:07:59]} 11. a4 {[%emt 0:27:03]} O-O {[%emt 0:03:27]} 12. Nd2 {[%emt 0:03:16]} Qb4 {[%emt 0:01:40]} 13. Bf3 {[%emt 0:02:09]} Rd8 {[%emt 0:04:51]} 14. Qc2 {[%emt 0:01:17]} Na5 {[%emt 0:01:00]} 15. e4 {[%emt 0:05:16]} Nb3 {[%emt 0:12:47]} 16. Nxb3 {[%emt 0:00:18]} cxb3 {[%emt 0:00:10]} 17. Qe2 {[%emt 0:02:16]} dxe4 {[%emt 0:13:40]} 18. Nxe4 {[%emt 0:00:06]} Be6 {[%emt 0:00:28]} 19. Nxf6+ {[%emt 0:02:19]} gxf6 {[%emt 0:00:32]} 20. d5 {[%emt 0:00:12]} Bxd5 {[%emt 0:00:13]} 21. Bxd5 {[%emt 0:00:08]} Rxd5 {[%emt 0:00:06]} 22. Qf3 {[%emt 0:00:13]} Rd6 {[%emt 0:10:09]} 23. Ra3 {[%emt 0:01:18]} Rbd8 {[%emt 0:04:21]} 24. Rxb3 {[%emt 0:00:27]} Qxa4 {[%emt 0:00:13]} 25. Rxb7 {[%emt 0:01:43]} Rd1 {[%emt 0:00:18]} 26. g3 {[%emt 0:02:05]} Kg7 {[%emt 0:05:54]} 27. Qb3 {[%emt 0:03:23]} Rxf1+ {[%emt 0:01:55]} 28. Kxf1 {[%emt 0:00:05]} Rd1+ {[%emt 0:00:22]} 29. Ke2 {[%emt 0:01:45]} Qxb3 {[%emt 0:00:05]} 30. Rxb3 {[%emt 0:00:05]} Rd7 {[%emt 0:00:05]} 31. h4 {[%emt 0:00:24]} 1/2-1/2

[Event "CZE-ch Open 2019"]
[Site "Ostrava"]
[Date "2019.04.28"]
[Round "2.19"]
[White "Svanda, Ondrej"]
[Black "Vanek, Tomas"]
[Result "1-0"]
[ECO "B30"]
[WhiteElo "2309"]
[BlackElo "2095"]
[Annotator "NA"]
[PlyCount "59"]
[EventDate "2019.04.27"]
[EventType "swiss"]
[EventCountry "CZE"]
[SourceTitle "playchess.com"]
[Source "ChessBase"]
[SourceQuality "1"]
[TimeControl "40/5400+30:1800+30"]

1. e4 {[%emt 0:00:00]} c5 {[%emt 0:00:00]} 2. Nf3 {[%emt 0:00:00]} Nc6 {[%emt 0:00:00]} 3. Nc3 {[%emt 0:00:00]} Nf6 {[%emt 0:00:14]} 4. Bb5 {[%emt 0:00:00]} Qc7 {[%emt 0:01:02]} 5. d3 {[%emt 0:00:00]} Nd4 {[%emt 0:02:20]} 6. O-O {[%emt 0:07:20]} a6 {[%emt 0:12:38]} 7. Bc4 {[%emt 0:03:32]} d6 {[%emt 0:08:56]} 8. h3 {[%emt 0:14:13]} h6 {[%emt 0:12:40]} 9. Be3 {[%emt 0:06:51]} e5 {[%emt 0:00:45]} 10. Nd5 {[%emt 0:02:09]} Nxd5 {[%emt 0:00:27]} 11. Bxd5 {[%emt 0:00:06]} Nc6 {[%emt 0:07:23]} 12. c3 {[%emt 0:04:57]} Ne7 {[%emt 0:08:00]} 13. Bb3 {[%emt 0:02:43]} Bd7 {[%emt 0:06:12]} 14. d4 {[%emt 0:11:22]} c4 {[%emt 0:00:50]} 15. Bc2 {[%emt 0:00:52]} O-O-O {[%emt 0:04:02]} 16. Qe2 {[%emt 0:10:31]} f5 {[%emt 0:03:19]} 17. exf5 {[%emt 0:01:11]} e4 {[%emt 0:04:41]} 18. Bxe4 {[%emt 0:02:36]} d5 {[%emt 0:00:12]} 19. Bc2 {[%emt 0:00:25]} Nxf5 {[%emt 0:05:35]} 20. Ne5 {[%emt 0:01:12]} Nh4 {[%emt 0:00:19]} 21. Nf7 {[%emt 0:07:57]} Bd6 {[%emt 0:00:13]} 22. Qh5 {[%emt 0:06:46]} Be7 {[%emt 0:01:12]} 23. Nxh8 {[%emt 0:01:39]} Rxh8 {[%emt 0:00:24]} 24. Rae1 {[%emt 0:03:54]} g5 {[%emt 0:02:25]} 25. f4 {[%emt 0:03:45]} Qd8 {[%emt 0:02:27]} 26. Bf2 {[%emt 0:01:53]} Rg8 {[%emt 0:02:56]} 27. Bxh4 {[%emt 0:01:24]} gxh4 {[%emt 0:00:15]} 28. Bf5 {[%emt 0:01:05]} Kb8 {[%emt 0:01:23]} 29. Bxd7 {[%emt 0:01:17]} Qxd7 {[%emt 0:00:06]} 30. Qf7 {[%emt 0:01:05]} 1-0

[Event "CZE-ch Open 2019"]
[Site "Ostrava"]
[Date "2019.04.28"]
[Round "2.21"]
[White "Blatny, Pavel"]
[Black "Bulockin, Martin"]
[Result "1-0"]
[ECO "A00"]
[WhiteElo "2326"]
[BlackElo "2199"]
[Annotator "NA"]
[PlyCount "89"]
[EventDate "2019.04.27"]
[EventType "swiss"]
[EventCountry "CZE"]
[SourceTitle "playchess.com"]
[Source "ChessBase"]
[SourceQuality "1"]
[TimeControl "40/5400+30:1800+30"]

1. e3 {[%emt 0:08:22]} d5 {[%emt 0:01:25]} 2. f4 {[%emt 0:00:20]} g6 {[%emt 0:02:07]} 3. d4 {[%emt 0:00:31]} Bg7 {[%emt 0:00:57]} 4. Bd3 Nh6 {[%emt 0:01:06]} 5. Nf3 {[%emt 0:00:41]} Bf5 {[%emt 0:02:04]} (5... O-O 6. O-O c5 7. c3 Qc7 8. h3 Nf5 9. Re1 Nd6 10. b3 Bf5 11. Ba3 Nd7 12. Ne5 b6 13. dxc5 Nxc5 14. Bxf5 Nxf5 15. Bxc5 bxc5 16. Qxd5 {0-1 (48) Gouw,C (2579)-Stalmach,K (2547) ICCF email 2008}) 6. Qe2 {A03: Bird's Opening with 1...d5} Nd7 $146 {[%emt 0:02:30]} ({Predecessor:} 6... O-O 7. Nbd2 c5 8. dxc5 Nd7 9. Bxf5 Nxf5 10. g4 Nh6 11. Ng5 e5 12. O-O Nxc5 13. Nb3 Nxb3 14. axb3 {0-1 (28) Bezulenko,E (1928)-Toivonen,A (2292) St Petersburg 2011}) 7. h3 {[%emt 0:00:46]} Bxd3 {[%emt 0:05:26]} 8. Qxd3 {[%emt 0:02:26]} c6 {[%emt 0:03:38]} 9. g4 {[%emt 0:02:39]} e6 {[%emt 0:04:35]} 10. c4 {[%emt 0:00:46]} Qe7 {[%emt 0:03:41]} 11. Nc3 {[%emt 0:00:26]} f6 {[%emt 0:01:39]} 12. Bd2 {[%emt 0:00:36]} dxc4 {[%emt 0:05:45]} 13. Qxc4 {[%emt 0:00:16]} e5 {[%emt 0:01:28]} 14. dxe5 {[%emt 0:20:37]} fxe5 {[%emt 0:00:21]} 15. O-O-O {[%emt 0:00:48]} O-O-O {[%emt 0:07:59]} 16. Ne4 {[%emt 0:06:14]} Nb6 {[%emt 0:04:35]} 17. Qc2 {[%emt 0:01:03]} Nf7 {[%emt 0:06:50]} 18. Kb1 {[%emt 0:02:29]} Rd5 {[%emt 0:05:33]} 19. f5 {[%emt 0:05:10]} Rhd8 {[%emt 0:06:16]} 20. Rhf1 {[%emt 0:05:37]} gxf5 {[%emt 0:04:48]} 21. gxf5 {[%emt 0:02:22]} Bh6 {[%emt 0:00:49]} 22. a3 {[%emt 0:00:30]} R8d7 {[%emt 0:11:01]} 23. Rg1 {[%emt 0:03:57]} c5 {[%emt 0:03:39]} 24. Rc1 {[%emt 0:08:44]} Rc7 {[%emt 0:02:13]} 25. Nc3 {[%emt 0:04:49]} Rd8 {[%emt 0:03:54]} 26. Nb5 {[%emt 0:00:09]} Rcd7 {[%emt 0:01:25]} 27. Ba5 {[%emt 0:13:28]} Qf6 {[%emt 0:04:46]} 28. Bxb6 {[%emt 0:05:31]} Qxb6 {[%emt 0:00:40]} 29. Qxc5+ {[%emt 0:00:09]} Qxc5 {[%emt 0:00:41]} 30. Rxc5+ {[%emt 0:00:01]} Kb8 {[%emt 0:00:00]} 31. Nxe5 {[%emt 0:00:20]} Re7 {[%emt 0:01:55]} 32. Nxf7 {[%emt 0:00:26]} Rxf7 {[%emt 0:00:01]} 33. Re5 {[%emt 0:03:03]} Bg7 {[%emt 0:01:25]} 34. Rc5 {[%emt 0:02:19]} Bf8 {[%emt 0:00:09]} 35. Rg8 {[%emt 0:00:45]} a6 {[%emt 0:00:37]} 36. Nd4 {[%emt 0:00:35]} Rfd7 {[%emt 0:01:01]} 37. Re5 {[%emt 0:00:23]} Bg7 {[%emt 0:00:45]} 38. Ree8 {[%emt 0:00:24]} Rxe8 {[%emt 0:00:08]} 39. Rxe8+ {[%emt 0:00:01]} Ka7 {[%emt 0:00:36]} 40. Ne6 {[%emt 0:00:17]} Bf6 {[%emt 0:00:24]} 41. Rf8 {[%emt 0:30:37]} Be5 {[%emt 0:03:14]} 42. Rd8 {[%emt 0:00:00]} Rxd8 $18 {[%emt 0:01:03]} 43. Nxd8 {[%emt 0:00:00]} Kb8 {[%emt 0:01:07]} 44. Ne6 {[%emt 0:00:00]} b6 {[%emt 0:01:01]} 45. Nf8 {[%emt 0:00:00]} 1-0

[Event "CZE-ch Open 2019"]
[Site "Ostrava"]
[Date "2019.04.28"]
[Round "2.22"]
[White "Bartos, Jan"]
[Black "Malik, Jan"]
[Result "0-1"]
[ECO "D47"]
[WhiteElo "2178"]
[BlackElo "2286"]
[Annotator "NA"]
[PlyCount "80"]
[EventDate "2019.04.27"]
[EventType "swiss"]
[EventCountry "CZE"]
[SourceTitle "playchess.com"]
[Source "ChessBase"]
[SourceQuality "1"]
[TimeControl "40/5400+30:1800+30"]

1. c4 {[%emt 0:00:00]} c6 {[%emt 0:00:01]} 2. Nc3 {[%emt 0:00:00]} d5 {[%emt 0:00:08]} 3. e3 {[%emt 0:00:01]} Nf6 {[%emt 0:00:17]} 4. Nf3 {[%emt 0:00:08]} e6 {[%emt 0:00:20]} 5. d4 {[%emt 0:00:12]} Nbd7 {[%emt 0:00:15]} 6. Bd3 {[%emt 0:00:12]} dxc4 {[%emt 0:00:15]} 7. Bxc4 {[%emt 0:00:04]} b5 {[%emt 0:00:06]} 8. Be2 {[%emt 0:00:06]} Bb7 {[%emt 0:00:15]} 9. O-O {[%emt 0:00:12]} a6 {[%emt 0:00:21]} 10. e4 {[%emt 0:00:18]} c5 {[%emt 0:00:11]} 11. d5 {[%emt 0:00:10] D47: Semi-Slav: Meran System} exd5 {[%emt 0:00:14]} 12. e5 {[%emt 0:00:33]} Ne4 {[%emt 0:00:24]} 13. Nxd5 {[%emt 0:00:14]} Nb6 {[%emt 0:00:20]} 14. Nxb6 {[%emt 0:01:06]} Qxb6 {[%emt 0:00:04] [#]} 15. a4 $146 {[%emt 0:38:03]} ({Predecessor:} 15. Be3 Be7 16. a4 Qc6 17. e6 Nd6 18. axb5 axb5 19. Rxa8+ Bxa8 {0-1 (28) Aleksandrov,A (2615)-Bukavshin,I (2657) Khanty-Mansiysk 2015}) 15... c4 {[%emt 0:07:48]} 16. Be3 {[%emt 0:03:45]} Bc5 {[%emt 0:03:58]} 17. Bxc5 {[%emt 0:00:41]} Nxc5 {[%emt 0:03:28]} 18. axb5 {[%emt 0:01:12]} Rd8 {[%emt 0:02:49]} 19. Qc2 {[%emt 0:13:53]} axb5 {[%emt 0:00:05]} 20. Rfd1 {[%emt 0:02:00]} O-O {[%emt 0:01:51]} 21. Rxd8 {[%emt 0:16:46]} Rxd8 $19 {[%emt 0:00:51]} 22. Rd1 {[%emt 0:00:07]} Be4 {[%emt 0:07:47]} 23. Rxd8+ {[%emt 0:04:04]} Qxd8 {[%emt 0:00:02]} 24. Qc3 {[%emt 0:01:03]} Bxf3 {[%emt 0:02:57]} 25. Bxf3 {[%emt 0:08:33]} Qd3 {[%emt 0:00:33]} 26. Qe1 {[%emt 0:00:14]} Qc2 {[%emt 0:02:50]} 27. Qa1 {[%emt 0:07:54]} Qa4 {[%emt 0:03:56]} 28. Qb1 {[%emt 0:01:22]} Nd3 {[%emt 0:02:40]} 29. Be4 {[%emt 0:01:00]} Qb3 {[%emt 0:02:03]} 30. h3 {[%emt 0:00:32]} g6 {[%emt 0:02:01]} 31. Bxd3 {[%emt 0:00:32]} cxd3 {[%emt 0:00:07]} 32. Qc1 {[%emt 0:00:29]} Qd5 {[%emt 0:03:56]} 33. Qd2 {[%emt 0:00:30]} Qxe5 {[%emt 0:00:15]} 34. Qxd3 {[%emt 0:00:25]} Qxb2 {[%emt 0:00:10]} 35. g3 {[%emt 0:00:25]} b4 {[%emt 0:00:09]} 36. f4 {[%emt 0:00:35]} Qc3 {[%emt 0:00:13]} 37. Qd8+ {[%emt 0:00:27]} Kg7 {[%emt 0:00:06]} 38. Kf2 {[%emt 0:00:21]} b3 {[%emt 0:00:13]} 39. g4 {[%emt 0:00:28]} b2 {[%emt 0:00:49]} 40. Qd1 {[%emt 0:00:13]} Qb4 {[%emt 0:00:37]} 0-1

[Event "CZE-ch Open 2019"]
[Site "Ostrava"]
[Date "2019.04.28"]
[Round "2.23"]
[White "Obsivac, Josef"]
[Black "Havelka, Ondrej"]
[Result "1/2-1/2"]
[ECO "D55"]
[WhiteElo "2285"]
[BlackElo "2156"]
[Annotator "NA"]
[PlyCount "81"]
[EventDate "2019.04.27"]
[EventType "swiss"]
[EventCountry "CZE"]
[SourceTitle "playchess.com"]
[Source "ChessBase"]
[SourceQuality "1"]
[TimeControl "40/5400+30:1800+30"]

1. d4 {[%emt 0:00:00]} d5 {[%emt 0:00:00]} 2. c4 {[%emt 0:00:00]} e6 {[%emt 0:00:00]} 3. Nc3 {[%emt 0:00:00]} Be7 {[%emt 0:00:00]} 4. Nf3 {[%emt 0:00:10]} Nf6 {[%emt 0:00:01]} 5. Bg5 {[%emt 0:00:16]} O-O {[%emt 0:00:08]} 6. e3 {[%emt 0:00:31]} h6 {[%emt 0:00:05]} 7. Bxf6 {[%emt 0:00:32]} Bxf6 {[%emt 0:00:05]} 8. Qb3 {[%emt 0:00:05]} c6 {[%emt 0:02:03]} 9. Be2 {[%emt 0:01:09]} Nd7 {[%emt 0:02:38]} 10. O-O {[%emt 0:03:01]} Qa5 {[%emt 0:14:58]} 11. Rfd1 {[%emt 0:06:53]} dxc4 {[%emt 0:09:28]} 12. Bxc4 {[%emt 0:00:17]} e5 {[%emt 0:00:32]} 13. Ne4 {[%emt 0:02:24]} exd4 {[%emt 0:11:05]} 14. Nxf6+ {[%emt 0:14:48]} Nxf6 {[%emt 0:00:09]} 15. Rxd4 {[%emt 0:00:21]} Qc7 {[%emt 0:10:17]} 16. h3 {[%emt 0:15:30]} b5 {[%emt 0:07:24]} 17. Be2 {[%emt 0:00:22]} c5 $11 {[%emt 0:01:42]} 18. Rc1 {[%emt 0:14:07]} Qb6 {[%emt 0:02:31]} 19. Rdd1 {[%emt 0:02:03]} a6 {[%emt 0:01:37]} 20. Qc2 {[%emt 0:02:41]} c4 {[%emt 0:02:44]} 21. Rd4 {[%emt 0:03:10]} Be6 {[%emt 0:05:13]} 22. Rcd1 {[%emt 0:02:07]} Rfc8 {[%emt 0:02:18]} 23. Rd6 {[%emt 0:01:56]} Qa5 {[%emt 0:00:07]} 24. a3 {[%emt 0:12:14]} Rd8 {[%emt 0:09:15]} 25. Rxd8+ {[%emt 0:01:06]} Rxd8 {[%emt 0:00:01]} 26. Rxd8+ {[%emt 0:00:29]} Qxd8 {[%emt 0:00:01]} 27. Nd4 {[%emt 0:00:27]} Bd5 {[%emt 0:00:56]} 28. Qf5 {[%emt 0:02:41]} Be4 {[%emt 0:07:00]} 29. Qc5 {[%emt 0:01:38]} Nd7 {[%emt 0:03:51]} 30. Qd6 {[%emt 0:00:49]} Qg5 {[%emt 0:01:56]} 31. Bf3 {[%emt 0:06:43]} Bxf3 {[%emt 0:00:42]} 32. Nxf3 {[%emt 0:00:04]} Qf5 {[%emt 0:00:06]} 33. e4 {[%emt 0:02:47]} Qe6 {[%emt 0:00:35]} 34. Qd4 {[%emt 0:00:38]} Qe7 {[%emt 0:01:59]} 35. Qd5 {[%emt 0:03:20]} Nc5 {[%emt 0:00:34]} 36. Ne5 {[%emt 0:00:51]} Na4 {[%emt 0:01:52]} 37. Nc6 {[%emt 0:00:17]} Qe6 {[%emt 0:01:19]} 38. Qd8+ {[%emt 0:00:34]} Kh7 {[%emt 0:00:04]} 39. Ne7 {[%emt 0:00:56]} f6 {[%emt 0:00:28]} 40. Qe8 {[%emt 0:00:57]} Nxb2 {[%emt 0:01:22]} 41. Qg6+ {[%emt 0:03:31]} 1/2-1/2

[Event "CZE-ch Open 2019"]
[Site "Ostrava"]
[Date "2019.04.28"]
[Round "2.24"]
[White "Jun, Rudolf Jr."]
[Black "Vybiral, Zdenek"]
[Result "1-0"]
[ECO "C00"]
[WhiteElo "2138"]
[BlackElo "2274"]
[Annotator "NA"]
[PlyCount "77"]
[EventDate "2019.04.27"]
[EventType "swiss"]
[EventCountry "CZE"]
[SourceTitle "playchess.com"]
[Source "ChessBase"]
[SourceQuality "1"]
[TimeControl "40/5400+30:1800+30"]

1. e4 {[%emt 0:00:00]} e6 {[%emt 0:00:00]} 2. Nf3 {[%emt 0:00:03]} d5 {[%emt 0:01:05]} 3. e5 {[%emt 0:00:32]} c5 {[%emt 0:00:05]} 4. b4 {[%emt 0:01:18]} c4 {[%emt 0:00:07]} 5. a3 {[%emt 0:06:49]} (5. c3 a5 6. b5 Nd7 7. d4 cxd3 8. Bxd3 Qc7 9. Qe2 Ne7 10. Bf4 h6 11. h4 g6 12. O-O Bg7 13. Nbd2 b6 14. c4 {1-0 (49) Bortnyk,O (2568)-Stupak,K (2535) Lvov 2016}) 5... a5 {[%emt 0:00:16]} 6. b5 {[%emt 0:05:36] C00: French: Unusual White 2nd moves} a4 {[%emt 0:00:30]} 7. d3 {[%emt 0:01:06]} cxd3 {[%emt 0:01:19]} 8. cxd3 $146 {[%emt 0:16:38]} ({Predecessor:} 8. Bxd3 Nd7 9. c3 Nc5 10. Bc2 Bd7 11. Nd4 Qc7 12. Qe2 Ne7 {0-1 (27) Rovnov,V (1834)-Tyapkin,P (1725) Saratov 2014}) 8... Nd7 {[%emt 0:25:10]} 9. d4 {[%emt 0:02:01]} Nb6 {[%emt 0:00:05]} 10. Bd3 {[%emt 0:02:15]} Bd7 {[%emt 0:00:03]} 11. Nc3 {[%emt 0:00:56]} Rc8 {[%emt 0:02:31]} 12. Bd2 {[%emt 0:04:04]} Nc4 {[%emt 0:00:36]} 13. Bxc4 {[%emt 0:00:43]} Rxc4 {[%emt 0:00:14]} 14. O-O {[%emt 0:00:27]} Ne7 {[%emt 0:00:26]} 15. Nxa4 {[%emt 0:04:25]} Bxb5 {[%emt 0:01:29]} 16. Nc5 {[%emt 0:00:16]} Bc6 {[%emt 0:08:30]} 17. Qb3 {[%emt 0:12:04]} b6 {[%emt 0:06:58]} 18. Nd3 {[%emt 0:00:18]} Nf5 {[%emt 0:00:25]} 19. Nb2 {[%emt 0:02:07]} Nxd4 {[%emt 0:04:16]} 20. Nxd4 {[%emt 0:00:23]} Rxd4 $16 {[%emt 0:00:06]} 21. Be3 {[%emt 0:03:31]} Re4 {[%emt 0:00:49]} 22. Rfc1 {[%emt 0:01:20]} Bd7 {[%emt 0:05:04]} 23. Bxb6 {[%emt 0:00:42]} Qb8 {[%emt 0:00:06]} 24. Nd3 {[%emt 0:01:28]} Be7 {[%emt 0:11:16]} 25. Rab1 {[%emt 0:00:50]} O-O {[%emt 0:01:22]} 26. Rc7 {[%emt 0:04:36]} Ba4 {[%emt 0:00:32]} 27. Qc3 {[%emt 0:03:14]} Re8 {[%emt 0:18:58]} 28. Rb2 {[%emt 0:00:45]} Qa8 {[%emt 0:01:42]} 29. f3 {[%emt 0:03:49]} Rc4 {[%emt 0:00:31]} 30. Rxc4 {[%emt 0:00:34]} dxc4 {[%emt 0:00:02]} 31. Qxc4 {[%emt 0:00:35]} Rc8 {[%emt 0:01:54]} 32. Qd4 {[%emt 0:00:47]} Bc6 {[%emt 0:02:45]} 33. Rc2 {[%emt 0:01:55]} Qxa3 {[%emt 0:01:11]} 34. Bc5 {[%emt 0:01:13]} Qb3 {[%emt 0:02:00]} 35. Rc1 {[%emt 0:04:25]} Bg5 {[%emt 0:04:07]} 36. f4 {[%emt 0:01:07]} Rd8 {[%emt 0:00:04]} 37. Bd6 {[%emt 0:00:24]} Bb5 {[%emt 0:01:09]} 38. Nc5 {[%emt 0:01:07]} Qa3 {[%emt 0:00:29]} 39. Ra1 {[%emt 0:00:11]} 1-0